Cogmind - Beta 17 @@@ ROGUE MODE // 2026.08.25 @ 14:43:30 Player: Niamak Result: Destroyed by D-53 Grenadier with Mini Grenade Launcher Performance ------------- Evolutions (0) 0 Regions Visited (4) 800 Robots Destroyed (9) 45 Value Destroyed (167) 167 Prototype IDs (26) 520 Alien Tech Used (0) 0 Bonus (300) 300 TOTAL SCORE: 1832 Bonus ------- Aligned with FarCom 300 Cogmind --------- Core Integrity 0/250 Matter 92/300 Energy 80/100 System Corruption 0% Temperature Cool (0) Movement Core (100) Ox1 Location -9/Mines Parts ------- > --- POWER (1) -------- (None) > --- PROPULSION (2) --- (None) > --- UTILITY (2) ------ Small Storage Unit > --- WEAPON (2) ------- (None) > --- INVENTORY (8) ---- Light Ion Engine Superbattery (1500) Structural Scanner Improved Terrain Scanner Seismic Detector Peak State ------------ > --- POWER ------------ (None) > --- PROPULSION ------- Light Treads Light Treads > --- UTILITY ---------- Small Storage Unit Thief Drone Bay > --- WEAPON ----------- Medium Laser Assault Rifle > --- INVENTORY -------- Light Ion Engine Hover Unit Flight Unit Superbattery Structural Scanner Improved Terrain Scanner Seismic Detector Rocket Launcher [Rating: 14] Favorites ----------- Power None Propulsion Light Treads Treads Light Treads Hover Unit Hover Unit Flight Unit Flight Unit Utility Small Storage Unit Device Thief Drone Bay Storage Small Storage Unit Protection Core Shielding Weapon Medium Laser Energy Gun Medium Laser Ballistic Gun Assault Rifle Launcher Rocket Launcher Build | -11 -10 -10 -10 -9 ------- Run | Yrd Mat Min Exi Min Slots Evolved . | . . . . . Power . | . . . . . Propulsion . | . . . . . Utility . | . . . . . Weapon . | . . . . . Parts Attached 13 | 6 1 3 . 3 Power . | . . . . . Engine . | . . . . . Core . | . . . . . Reactor . | . . . . . Propulsion 6 | 2 . 2 . 2 Treads 4 | 2 . 2 . . Leg . | . . . . . Wheel . | . . . . . Hover 1 | . . . . 1 Flight 1 | . . . . 1 Utility 4 | 2 1 1 . . Device 2 | 1 . 1 . . Storage 1 | 1 . . . . Processor . | . . . . . Hackware . | . . . . . Protection 1 | . 1 . . . Artifact . | . . . . . Weapon 3 | 2 . . . 1 Energy Gun 1 | 1 . . . . Energy Cannon . | . . . . . Ballistic Gun 1 | 1 . . . . Ballistic Cannon . | . . . . . Launcher 1 | . . . . 1 Special Weapon . | . . . . . Impact Weapon . | . . . . . Slashing Weapon . | . . . . . Piercing Weapon . | . . . . . Special Melee Weapon . | . . . . . Unidentified Prototypes 1 | . . 1 . . Parts Lost 8 | . . . . 8 Power . | . . . . . Propulsion 4 | . . . . 4 Utility 1 | . . . . 1 Weapon 3 | . . . . 3 Highest Loss Streak 8 | . . . . 8 To Critical Strikes . | . . . . . Average Backups 7 | 2 6 7 8 7 Power 1 | 1 1 1 1 1 Propulsion 1 | . 1 1 2 1 Utility 3 | . 2 3 4 4 Weapon 1 | . . 1 1 . Tool/Special . | . . . . . Unused Backups 7 | . 2 1 . 4 Power 3 | . 1 1 . 1 Propulsion . | . . . . . Utility 3 | . . . . 3 Weapon 1 | . 1 . . . Tool/Special . | . . . . . Average Slot Usage (%) 84 | . 85 85 85 77 Treads 27 | . 28 28 28 24 Device 13 | . 11 14 14 12 Storage 14 | . 14 14 14 14 Energy Gun 13 | . 14 14 14 12 Ballistic Gun 12 | . 14 14 14 1 Peak Build Rating 14 | 6 7 13 14 14 Average Rating 9 | 3 6 10 13 12 On Entrance 8 | . 6 7 13 14 Avg Prop Armor Cover (%) . | . . . . . Naked Turns . | . . . . . Heaviest Build 15 | 10 10 13 13 15 Greatest Support 40 | 40 40 40 40 40 Greatest Overweight (x) 1 | . . . . 1 Average Overweight (x) . | . . . . . Largest Inventory Capacity 8 | 8 8 8 8 8 Average Capacity 7 | 5 8 8 8 8 Most Carried 8 | 5 8 8 8 8 Average Carried 7 | 2 6 7 7 7 Final Capacity 8 | 8 8 8 8 8 Final Carried 8 | 4 8 8 8 5 Class Distribution -------------------- 100% | Mutant Dominant Class ---------------- Mutant | -10/Materials Mutant | -10/Mines Mutant | -10/Exiles Mutant | -9/Mines Resources | -11 -10 -10 -10 -9 ----------- Run | Yrd Mat Min Exi Min Matter Collected 270 | 192 73 . . 5 Remotely . | . . . . . Salvage Created 269 | 25 213 . . 31 Parts 16 | 6 10 . . . Haulers Intercepted . | . . . . . Recyclers Shooed . | . . . . . Parts Field Recycled . | . . . . . Retrieved Matter . | . . . . . Parts Self-Destructed . | . . . . . Prevented . | . . . . . Parts Restored . | . . . . . Kills | -11 -10 -10 -10 -9 ------- Run | Yrd Mat Min Exi Min Combat Hostiles Destroyed 23 | . 5 . . 18 Guns 4 | . 3 . . 1 AOE 19 | . 2 . . 17 Classes Destroyed 6 | 1 4 . . 1 Tunneler 2 | 2 . . . . Recycler 1 | . 1 . . . Watcher 1 | . 1 . . . Swarmer 3 | . 3 . . . Grunt 2 | . 2 . . . Assembled 18 | . . . . 18 Best Kill Streak 18 | 2 4 . . 18 Combat Bots Only 18 | . 3 . . 18 Max Kills in Single Turn 4 | 1 3 . . 4 Gunslinging . | . . . . . Exploded 4 | . 2 . . 4 Melee . | . . . . . Uniques/NPCs Destroyed . | . . . . . Combat | -11 -10 -10 -10 -9 -------- Run | Yrd Mat Min Exi Min Hostile Shots Fired 49 | . 12 . . 37 Missed 15 | . 6 . . 9 Hits 34 | . 6 . . 28 Melee 1 | . . . . 1 Projectile 33 | . 6 . . 27 AOE 20 | . . . . 20 Damage Taken 1181 | . 206 . . 975 Core 251 | . 10 . . 241 Absorbed by Shields . | . . . . . Core Remaining (%) 100 | 100 . . . . Volleys Fired 32 | 4 8 . . 20 Largest 2 | 2 2 . . 2 Hottest 83 | 70 70 . . 83 Shots Fired 47 | 8 16 . . 23 Gun 35 | 8 16 . . 11 Cannon . | . . . . . Launcher 12 | . . . . 12 Special . | . . . . . Kinetic 12 | 4 8 . . . Thermal 23 | 4 8 . . 11 Explosive 12 | . . . . 12 Electromagnetic . | . . . . . Robot Hit Streak 6 | 2 6 . . 6 Robot Miss Streak 4 | 1 4 . . 3 Penetration Max . | . . . . . Secondary Targets 1 | . 1 . . . Max Gunslinging Chain 1 | . 1 . . . Shots Hit Robots 27 | 4 9 . . 14 Core Hits 47 | 2 9 . . 36 Critical Kills . | . . . . . Critical Parts Destroyed . | . . . . . Critical Strikes 1 | . . . . 1 Burn 1 | . . . . 1 Melee Attacks . | . . . . . Impact . | . . . . . Slashing . | . . . . . Piercing . | . . . . . Sneak Attacks . | . . . . . Combat Hostiles . | . . . . . Follow-up Attacks . | . . . . . Damage Inflicted 1891 | 50 520 . . 1321 Guns 245 | 50 109 . . 86 Cannons . | . . . . . Explosions 1646 | . 411 . . 1235 Melee . | . . . . . Ramming . | . . . . . Kinetic 58 | 11 47 . . . Thermal 187 | 39 62 . . 86 Explosive 1646 | . 411 . . 1235 Electromagnetic . | . . . . . Impact . | . . . . . Slashing . | . . . . . Piercing . | . . . . . Highest Corruption . | . . . . . Average Corruption . | . . . . . Corruption Purged . | . . . . . Corruption Blocked . | . . . . . Overload Shots . | . . . . . Overflow Damage 195 | . 163 . . 32 Projectiles . | . . . . . Explosions 195 | . 163 . . 32 Melee . | . . . . . Knockbacks . | . . . . . Impact . | . . . . . Kinetic . | . . . . . Secondary . | . . . . . Self-Inflicted Damage 180 | . 149 . . 31 Shots 3 | . 2 . . 1 Rammed . | . . . . . Targets Rammed . | . . . . . Kicked . | . . . . . Crushed . | . . . . . Highest Temperature 60 | . . . . 60 Average Temperature 25 | . . . . 25 Received Heat Transfer 86 | . 6 . . 80 Siege Activations . | . . . . . Martial Activations . | . . . . . Shielding Activations . | . . . . . Robots Disrupted . | . . . . . Combat Hostiles . | . . . . . Robots Corrupted . | . . . . . Combat Hostiles . | . . . . . Parts Fried . | . . . . . Impact Corruptions . | . . . . . Robots Melted . | . . . . . Combat Hostiles . | . . . . . Parts Melted . | . . . . . Heat Transferred 629 | 111 185 . . 333 Parts Sabotaged . | . . . . . Parts Stolen . | . . . . . Parts Stripped . | . . . . . Power Chain Reactions . | . . . . . Alert | -11 -10 -10 -10 -9 ------- Run | Yrd Mat Min Exi Min Maximum Alert Level . | . . . . . Low Security (%) 100 | 100 100 100 . 100 Level 1 . | . . . . . Level 2 . | . . . . . Level 3 . | . . . . . Level 4 . | . . . . . Level 5 . | . . . . . High Security . | . . . . . Max Security . | . . . . . Peak Influence 159 | 5 159 57 . 31 Initial 57 | . . 57 . . Average 21 | . 30 21 . 6 Influence Increases 340 | 10 203 75 . 52 Destroy 0b10 Robot/C 100 | . 100 . . . Destroy 0b10 Robot/NC 20 | 10 10 . . . Destroy Leader 22 | . 22 . . . Successful Hack 7 | . 7 . . . Disable Machine 30 | . 30 . . . Destroy Structure 86 | . 34 . . 52 Lose Combat Pursuer 75 | . . 75 . . Influence Decreases 340 | 10 54 169 55 52 Entered New Map 147 | . . 92 55 . Time Decay 159 | 10 54 77 . 18 Lost Part 14 | . . . . 14 Lost Ally 20 | . . . . 20 Squads Dispatched . | . . . . . Investigation . | . . . . . Extermination . | . . . . . Reinforcement . | . . . . . Assault . | . . . . . Garrison . | . . . . . Intercept . | . . . . . Searches Triggered . | . . . . . Construction Impeded . | . . . . . Haulers Reinforced . | . . . . . Active Scanning Responses . | . . . . . Cargo Convoy Interrupts . | . . . . . Stealth | -11 -10 -10 -10 -9 --------- Run | Yrd Mat Min Exi Min Distress Signals . | . . . . . Communications Jammed . | . . . . . Distress Signals . | . . . . . Times Spotted 30 | . 6 2 . 22 Peak Tracking Total 20 | . 3 3 . 20 Tactical Retreats 3 | . . 2 . 1 Traps | -11 -10 -10 -10 -9 ------- Run | Yrd Mat Min Exi Min Traps Triggered . | . . . . . Indirectly . | . . . . . Trap Hack Attempts . | . . . . . Triggered . | . . . . . Disarmed . | . . . . . Reprogrammed . | . . . . . Reused . | . . . . . Traps Extracted . | . . . . . Installed . | . . . . . Triggered . | . . . . . Machines | -11 -10 -10 -10 -9 ---------- Run | Yrd Mat Min Exi Min Machines Disabled 2 | . 2 . . . Max in Single Turn 2 | . 2 . . . Machines Repaired . | . . . . . Machines Dismantled . | . . . . . Machines Sabotaged . | . . . . . Overloaded Fab Kills . | . . . . . Hacking | -11 -10 -10 -10 -9 --------- Run | Yrd Mat Min Exi Min Machines Accessed 4 | . 2 1 1 . Terminals 2 | . 2 . . . Fabricators . | . . . . . Repair Stations . | . . . . . Recycling Units . | . . . . . Scanalyzers . | . . . . . Garrison Access . | . . . . . Total Hacks 9 | . 7 1 1 . Successful 6 | . 4 1 1 . Failed 3 | . 3 . . . Catastrophic 1 | . 1 . . . Database Lockouts . | . . . . . Manual 2 | . 1 . 1 . Terminals 7 | . 7 . . . Fabricators . | . . . . . Repair Stations . | . . . . . Recycling Units . | . . . . . Scanalyzers . | . . . . . Garrison Access . | . . . . . Terminal Hacks 6 | . 4 1 1 . Prototype ID Bank 1 | . 1 . . . Open Door 1 | . . 1 . . Branch Access Points 1 | . 1 . . . Dispatch Records 1 | . 1 . . . Zone Layout 1 | . 1 . . . Proto ID Catalog 1 | . . . 1 . Fabricator Hacks . | . . . . . Repair Station Hacks . | . . . . . Recycling Unit Hacks . | . . . . . Scanalyzer . | . . . . . Garrison Access Hacks . | . . . . . Unauthorized Hacks . | . . . . . Terminals . | . . . . . Fabricators . | . . . . . Repair Stations . | . . . . . Recycling Units . | . . . . . Scanalyzers . | . . . . . Garrison Access . | . . . . . Data Cores Recovered . | . . . . . Used . | . . . . . Hacking Detections 1 | . 1 . . . Full Trace Events . | . . . . . Feedback Events . | . . . . . Feedback Blocked . | . . . . . Robot Schematics Acquired . | . . . . . Robots Built . | . . . . . Authchips . | . . . . . Time . | . . . . . Total Robot Build Rating . | . . . . . Part Schematics Acquired . | . . . . . Parts Built . | . . . . . Authchips . | . . . . . Time . | . . . . . Total Part Build Rating . | . . . . . Part Studies Acquired . | . . . . . Parts Repaired . | . . . . . Time . | . . . . . Parts Recycled . | . . . . . Recycled Matter . | . . . . . Retrieved Matter . | . . . . . Retrieved Components . | . . . . . Parts Scanalyzed . | . . . . . Part Schematics Acquired . | . . . . . Parts Damaged . | . . . . . Bothacking | -11 -10 -10 -10 -9 ------------ Run | Yrd Mat Min Exi Min Used RIF Installer . | . . . . . Robots Hacked . | . . . . . Non-combat . | . . . . . Combat . | . . . . . Robot Hacks Applied . | . . . . . Relay Couplers Released . | . . . . . Fabnet Peak Effective % . | . . . . . Robots Rewired . | . . . . . Allies Hacked . | . . . . . Hacks Repelled . | . . . . . Allies | -11 -10 -10 -10 -9 -------- Run | Yrd Mat Min Exi Min Total Allies . | . . . . . Largest Group . | . . . . . Highest-Rated Group . | . . . . . Highest-Rated Ally . | . . . . . Total Orders 6 | . . 3 . 3 EXPLORE 3 | . . 2 . 1 RETURN 3 | . . 1 . 2 Ally Attacks 30 | . . 18 . 12 Total Damage 126 | . . 37 . 89 Kills 2 | . . . . 2 Allies Corrupted 1 | . . . . 1 Allies Melted . | . . . . . Intel | -11 -10 -10 -10 -9 ------- Run | Yrd Mat Min Exi Min Active Infowar (turns) 406 | 22 280 104 . . Seismic 406 | 22 280 104 . . Robot Analysis Total . | . . . . . Derelict Logs Recovered . | . . . . . Drone Launches 11 | . . 6 . 5 Drone Recoveries 8 | . . 6 . 2 Exploration | -11 -10 -10 -10 -9 ------------- Run | Yrd Mat Min Exi Min Turns Passed 1103 | 85 326 219 388 85 Spaces Moved 611 | 38 175 130 242 26 Core 4 | 2 . . . 2 Treads 602 | 36 175 130 242 19 Legs . | . . . . . Wheels . | . . . . . Hover 4 | . . . . 4 Flight 1 | . . . . 1 Fastest Speed 50 | 50 160 160 160 60 Average Speed 158 | 154 160 160 160 138 Slowest Speed 160 | 160 160 160 160 160 Overloaded Moves . | . . . . . Propulsion Burnouts . | . . . . . Robots Hopped . | . . . . . Potential Cave-ins . | . . . . . Cave-ins Triggered . | . . . . . Exploration Rate (%) 38 | 3 47 69 62 10 Regions Visited 4 Branch Regions 3 Pre-discovered Areas 1 | . . 1 . . Known Exits Taken 1 | . 1 . . . Unknown Exits Taken 3 | 1 . 1 1 . Scrap Searched . | . . . . . Spaces Dug . | . . . . . Terrain Destroyed 148 | . 39 . . 109 Melee . | . . . . . Projectile . | . . . . . AOE 148 | . 39 . . 109 Terrain Rammed . | . . . . . Walls Destroyed . | . . . . . Machines Disabled . | . . . . . Actions | -11 -10 -10 -10 -9 --------- Run | Yrd Mat Min Exi Min Total 698 | 57 206 141 243 51 Wait 16 | . 15 . . 1 Move 607 | 37 174 129 241 26 Hop . | . . . . . Pick Up 21 | 10 6 4 1 . Fast Attach . | . . . . . Attach 9 | 6 . . . 3 Detach . | . . . . . Swap 6 | . 1 4 . 1 Drop 7 | . 2 4 1 . Fire 32 | 4 8 . . 20 Melee . | . . . . . Ram . | . . . . . Kick . | . . . . . Crush . | . . . . . Escape Stasis . | . . . . . Rewire . | . . . . . Trap . | . . . . . Miscellaneous . | . . . . . Route ------- -11/Scrapyard -10/Materials (discovered 2 exits: [*Mat] / *Min) -10/Mines (discovered 3 exits: [*Mat x2] / *Exi) -10/Exiles -9/Mines History --------- Turn | Location | Event 21 | -11/Scrapyard | Discovered new exit (range 16) 86 | -11/Scrapyard | Entered Materials 261 | -10/Materials | Identified exit to Mines 261 | -10/Materials | Discovered new exit (range 6) 317 | -10/Materials | Build established: Mutant 412 | -10/Materials | Entered Mines 419 | -10/Mines | Received a Rocket Launcher from a helpful Derelict 440 | -10/Mines | Learned location of Storage (-9) 499 | -10/Mines | Found the Drone Emporium 507 | -10/Mines | Found Prototype Device 516 | -10/Mines | Identified Thief Drone Bay 539 | -10/Mines | Discovered new exit (range 24) 592 | -10/Mines | Discovered new exit (range 9) 609 | -10/Mines | Deemed a non-threat by the Exiles lab entrance 609 | -10/Mines | Discovered new exit (range 5) 631 | -10/Mines | Entered Exiles 675 | -10/Exiles | Met 8R-AWN 703 | -10/Exiles | Met EX-HEX 755 | -10/Exiles | Met EX-BIN 774 | -10/Exiles | Aligned with FarCom system 775 | -10/Exiles | Given EX-Vault access code 830 | -10/Exiles | Opened EX-Vault 842 | -10/Exiles | Found Superbattery 875 | -10/Exiles | Warned to stay clear of 0b10 Research branches 918 | -10/Exiles | Met EX-DEC 1003 | -10/Exiles | Discovered new exit (range 12) 1019 | -10/Exiles | Left Exiles lab with Superbattery 1019 | -10/Exiles | Entered Mines 1020 | -9/Mines | Assembled infested the area 1078 | -9/Mines | Met a Derelict bent on vengeance 1088 | -9/Mines | Destroyed 18 combat bots 1095 | -9/Mines | Lost 3 allies 1098 | -9/Mines | Core integrity fell below 50% 1101 | -9/Mines | Core integrity fell below 20% 1104 | -9/Mines | Destroyed by D-53 Grenadier with Mini Grenade Launcher Last Messages --------------- effect. 01063_ Thief Drone knocked back. 01064_ Thief Drone system terminally corrupted. 01067_ as-31210 destroyed. 01069_ Acquired 5 matter. 01071_ The unstable cave ceiling collapses. 01086_ D-53 Grenadier suffers critical hit (Burn). 01088_ The unstable cave ceiling collapses. 01093_ Lgt. Treads destroyed. 01094_ Rocket Launcher destroyed. 01095_ Med. Laser destroyed. 01095_ Lgt. Treads destroyed. 01096_ The unstable cave ceiling collapses. 01096_ Assault Rifle destroyed. 01097_ Thief Drone Bay destroyed. 01098_ The unstable cave ceiling collapses. 01099_ Hover Unit destroyed. 01100_ The unstable cave ceiling collapses. 01102_ Flight Unit destroyed. 01102_ D-53 Grenadier destroyed. Map ----- +----------------------------------------------------+ | | | | | | | | | | | | | | | | | | | ?????????????????????????????????????????????????? | | ???????????????####??????????????????????????????? | | ?????????????### ##????##???????????????????????? | | ????????????## ##### ##??????????????????????? | | ????????????# ## #??????????????????????? | | ????????????# ##?????????????????????? | | ?????????????# ##????????????????????? | | ????????????## #????????????????????? | | ????????????# ##?????????????????????? | | ????????????# #?????????????????????? | | ????????????## # #?????????????????????? | | ?????????????#### ##????????????????????? | | ????????????????## #?????? # #?????????? | | ?????????????????# #??? #?????????? | | ?????????????????# ### #????????? | | ?????????????????# < #???????? | | ?????????????????# d @ #???????? | | ?????????????????# #???????? | | ?????????????????# # #### #????????? | | ?????????????????# # ## #????? ##????????? | | ?????????????????# ? #????????##?????????? | | ?????????????????# #?#???????????????????? | | ?????????????????# # ###?????????????????????? | | ?????????????????### #???????????????????????? | | ???????????????????### #???????????????????????? | | ?????????????????????##% ???????????????????????? | | ??????????????????????? ##???????????????????????? | | ??????????????????????##?????????????????????????? | | ?????????????????????????????????????????????????? | | ?????????????????????????????????????????????????? | | ?????????????????????????????????????????????????? | | ?????????????????????????????????????????????????? | | ?????????????????????????????????????????????????? | | ?????????????????????????????????????????????????? | | ?????????????????????????????????????????????????? | | ?????????????????????????????????????????????????? | | ?????????????????????????????????????????????????? | | ?????????????????????????????????????????????????? | | ?????????????????????????????????????????????????? | | ?????????????????????????????????????????????????? | | ?????????????????????????????????????????????????? | +----------------------------------------------------+ Best States ------------- Heat Dissipation 25 Energy Generation 5 Energy Capacity 100 Matter Stores 259 Matter Capacity 300 Sight Range 16 Terrain Scan Density 10 Core Shielding 20 Evasion (%) 40 Recoil Reduction 2 Item Schematics ----------------- None Robot Schematics ------------------ None Fabricated ------------ Nothing Repaired ---------- Nothing Studied --------- None Alien Tech Used ----------------- None Achievements -------------- Exterminator Hunted Challenges ------------ None Game ------ Seed TacticalExoskeletonPurifier Manual? 0 Play Time 00:26:34 Cumulative 18.6 hours Start 2026.08.25 @ 14:11:58 End 2026.08.25 @ 14:43:30 Sessions 2 Manual Loads 0 Difficulty Rogue Special Mode None Game No. 25 Rogue 25 Adventurer 0 Explorer 0 Win Type - Total 0 Types 0/0/0/0/0/0/0/0/0/0 Lore% 13 Gallery% 18 Achievement% 18 Wizard Run 0 Options --------- Layout 2 ASCII 0 Keyboard 0 Movement Mouse Keybinds 0 Fullscreen 1 Font 16/SmallcapsGlow Map View 55x47 Zoom Use 0% Tactical HUD 1 Map Filters NONE Filters NONE Steam X RUN: 4a666829-4cf5-40af-871c-4432a0ed74be